bitfinex/quotes_ETHUSD_20241225
["timestamp","ask_amount","ask_price","bid_price","bid_amount"]
[1735144699908,2.90105,3447.1,3446.0,0.0829]
[1735144700105,2.90105,3447.1,3446.0,0.381388]
[1735144700471,2.90084,3447.3,3446.1,3.69482]
[1735144700779,2.90097,3447.2,3446.1,3.69482]
[1735144701187,0.7953,3447.4,3446.1,0.793]
[1735144701428,0.7953,3447.4,3446.4,2.9015]
[1735144701712,0.7953,3447.4,3446.1,3.69477]
[1735144701917,0.7953,3447.4,3446.2,0.377767]
[1735144702346,0.7953,3447.4,3446.1,0.793]
[1735144702545,2.90092,3447.2,3446.1,3.69479]
[1735144703716,2.9012,3446.9,3446.0,0.0829]
[1735144704033,3.71073,3446.7,3446.0,0.0829]
[1735144704236,0.55,3446.6,3446.0,0.0829]
[1735144704379,4.26123,3446.1,3446.0,0.0829]
[1735144704993,0.8094,3446.1,3446.0,0.0829]
[1735144707409,4.26123,3446.1,3446.0,0.0829]
[1735144710338,3.71123,3446.1,3446.0,0.0829]
[1735144710500,0.8094,3446.1,3446.0,0.0829]
[1735144712451,0.55,3445.9,3444.6,0.76772975]
[1735144712630,0.55,3445.4,3444.6,0.1741783]
[1735144712846,2.90266,3445.2,3444.6,0.1741783]
[1735144713547,3.6539,3445.1,3444.6,0.1741783]
[1735144713748,2.90276,3445.0,3444.6,0.1741783]
[1735144714129,0.7512,3445.1,3444.6,0.1741783]
[1735144714440,2.90296,3444.8,3444.6,0.1741783]
[1735144715231,0.7512,3445.1,3444.6,0.1741783]
[1735144715232,0.55,3445.0,3444.6,0.1741783]
[1735144715436,3.65394,3445.1,3444.6,0.1741783]
[1735144715437,0.7512,3445.1,3444.6,0.1741783]
[1735144715828,2.90275,3445.0,3444.6,0.1741783]
[1735144716042,0.7512,3445.1,3444.6,0.1741783]
[1735144717257,3.65388,3445.1,3444.6,0.1741783]
[1735144717617,5.90199,3446.0,3444.6,0.1741783]
[1735144717618,2.90249,3445.4,3444.6,0.1741783]
[1735144717814,3.65369,3445.4,3444.6,0.1741783]
[1735144719317,0.7512,3445.4,3444.6,0.1741783]
[1735144719623,2.90259,3445.2,3444.6,0.1741783]
[1735144720383,2.90287,3444.9,3444.6,0.1741783]
[1735144720853,0.55,3445.3,3444.6,0.1741783]
[1735144721057,0.55,3445.0,3444.6,0.1741783]
[1735144721373,2.90301,3444.7,3444.6,0.1741783]
[1735144721677,4.26051,3444.7,3444.6,0.1741783]
[1735144722817,3.71051,3444.7,3444.6,0.1741783]
[1735144723240,3.51051,3444.7,3444.6,0.1741783]
[1735144723443,0.8075,3445.1,3444.6,0.1741783]
[1735144723827,3.71025,3445.1,3444.6,0.1741783]
[1735144724044,0.8075,3445.6,3444.6,0.1741783]
[1735144724251,2.90249,3445.4,3444.6,0.1741783]
[1735144724572,2.90249,3445.4,3444.7,0.7768]
[1735144724878,0.8075,3445.6,3444.7,0.7768]
[1735144725018,2.90234,3445.5,3444.7,0.7768]
[1735144725528,0.8075,3445.6,3444.7,1.16222183]
[1735144725733,2.90217,3445.7,3444.7,1.16222183]
[1735144725932,0.8075,3445.9,3444.7,1.16222183]
[1735144726136,0.8075,3446.2,3444.8,2.90291]
[1735144726647,2.90199,3446.0,3444.8,2.90291]
[1735144726829,2.90183,3446.1,3444.9,2.90282]
[1735144727034,2.90202,3445.9,3444.7,3.67979]
[1735144728170,0.8075,3446.2,3444.7,0.7768]
[1735144728460,0.8075,3446.2,3444.6,0.1741783]
[1735144728461,2.90285,3444.9,3444.6,0.1741783]
[1735144729120,0.8075,3445.3,3444.6,0.1741783]
[1735144729424,2.90268,3445.1,3444.6,0.1741783]
[1735144730122,0.8075,3445.3,3444.6,0.1741783]
[1735144730323,2.90267,3445.1,3444.6,0.1741783]
[1735144731200,2.90276,3445.0,3444.6,0.1741783]
[1735144731493,0.8075,3445.3,3444.6,0.1741783]
[1735144731692,2.90268,3445.1,3444.6,0.1741783]
[1735144732043,2.90277,3445.0,3444.6,0.1741783]
[1735144732963,0.8075,3445.3,3444.6,0.1741783]
[1735144733151,2.90285,3444.9,3444.6,0.1741783]
[1735144733509,0.8075,3445.3,3444.6,0.1741783]
[1735144733800,2.90301,3444.7,3444.6,0.1741783]
[1735144736063,2.90225,3445.6,3444.7,0.7518]
[1735144736418,0.7953,3445.9,3444.7,0.7518]
[1735144736719,2.90259,3445.2,3444.7,0.7518]
[1735144737056,2.90259,3445.2,3444.6,0.1741783]
[1735144737257,0.7953,3445.1,3444.6,0.1741783]
[1735144737497,2.90285,3444.9,3444.6,0.1741783]
[1735144737702,2.90296,3444.8,3444.6,0.1741783]
[1735144737856,0.55,3445.3,3444.6,0.1741783]
[1735144738057,2.90283,3445.0,3444.6,0.1741783]
[1735144739198,2.90288,3444.9,3444.6,0.1741783]
[1735144740414,0.55,3445.3,3444.6,0.1741783]
[1735144740721,2.90276,3445.0,3444.6,0.1741783]
[1735144741659,2.90242,3445.4,3444.6,0.1741783]
[1735144741862,2.90236,3445.5,3444.7,0.7518]
[1735144742062,2.90236,3445.5,3444.7,0.6518]
[1735144742653,2.90236,3445.5,3444.7,1.02472383]
[1735144743553,1.17334387,3445.7,3445.0,2.90267]
[1735144743762,1.17334387,3445.7,3445.0,2.89172152]
[1735144743961,1.17334387,3445.7,3444.7,0.40194809]
[1735144743962,1.17334387,3446.0,3445.3,2.9025]
[1735144744249,1.17334387,3446.0,3444.7,0.37292383]
[1735144744450,2.90218,3445.7,3444.7,0.37292383]
[1735144744836,1.17334387,3446.0,3444.7,0.37292383]
[1735144745146,1.17334387,3446.0,3444.8,0.7518]
[1735144745353,1.17334387,3446.0,3444.9,0.78082532]
[1735144745554,1.17334387,3446.0,3445.1,2.90266]
[1735144745759,2.90177,3446.2,3445.2,0.7518]
[1735144745902,2.90176,3446.2,3445.2,3.65432]
[1735144746108,1.17334387,3446.3,3445.2,0.7518]
[1735144746443,4.07503387,3446.3,3445.2,3.65437]
[1735144746647,1.17334387,3446.3,3445.3,0.40073953]
[1735144746857,2.90174,3446.2,3445.2,0.7518]
[1735144747314,2.90223,3445.7,3445.2,0.7518]
[1735144747675,2.90202,3445.9,3445.2,0.7518]
[1735144747838,2.90178,3446.2,3445.2,0.7518]
[1735144748177,2.90183,3446.1,3445.2,0.7518]
[1735144749109,2.90217,3445.7,3445.2,0.7518]
[1735144749315,2.90236,3445.5,3444.7,0.8109]
[1735144749934,2.90251,3445.3,3444.7,0.8109]
[1735144750411,2.90251,3445.3,3444.7,0.7609]
[1735144750774,1.17334387,3445.7,3444.7,0.7609]
[1735144751124,2.9025,3445.3,3444.7,0.7609]
[1735144751321,1.17334387,3445.7,3444.7,0.7609]
[1735144751322,2.90236,3445.5,3444.7,0.7609]
[1735144751727,2.90242,3445.4,3444.7,0.7609]
[1735144752076,2.9025,3445.3,3444.7,0.7609]
[1735144752285,2.90268,3445.1,3444.6,0.1741783]
[1735144752464,0.8162,3445.5,3444.6,0.1741783]
[1735144752627,3.71854,3445.5,3444.6,0.1741783]
[1735144752823,2.90243,3445.4,3444.6,0.1741783]
[1735144753028,1.17334387,3445.6,3444.7,2.90293]
[1735144753261,1.17334387,3445.6,3444.8,0.30771083]
[1735144753428,1.17334387,3445.6,3444.9,0.8109]
[1735144753638,1.48300027,3445.4,3445.2,2.90251]
[1735144753988,1.48300027,3445.4,3445.3,0.8109]
[1735144755094,2.90193,3446.0,3445.3,0.8109]
[1735144756251,2.65634414,3445.9,3445.3,0.8109]
[1735144758373,2.65634414,3445.9,3445.8,2.90208]
[1735144758564,2.65634414,3445.9,3445.8,3.71298]
[1735144760633,1.17334387,3447.2,3446.4,2.90154]
[1735144760834,1.17334387,3447.2,3446.5,0.8109]
[1735144761963,5.24734774,3447.5,3446.5,0.8109]
[1735144761964,2.90066,3447.5,3446.5,0.8109]
[1735144762493,3.45049,3447.7,3446.6,2.9014]
[1735144762705,1.17334387,3447.8,3446.7,0.8109]
[1735144762841,1.17334387,3447.8,3446.8,3.71206]
[1735144763047,1.17334387,3447.8,3446.9,0.8109]
[1735144763247,1.17334387,3447.8,3446.9,3.71202]
[1735144763546,1.17334387,3447.8,3447.0,0.371202]
[1735144763763,1.17334387,3448.0,3447.2,0.7767]
[1735144763946,1.17334387,3448.0,3447.2,3.6776]
[1735144764572,1.17334387,3448.0,3447.2,0.7767]
[1735144764928,1.17334387,3448.4,3447.2,3.6776]
[1735144765216,4.07325387,3448.4,3447.2,3.6776]
[1735144765420,4.07325387,3448.4,3447.2,3.50631035]
[1735144765575,4.07325387,3448.4,3447.3,0.7767]
[1735144766251,2.89998,3448.3,3447.3,0.7767]
[1735144767976,2.90001,3448.3,3447.3,0.7767]
[1735144768419,2.9001,3448.2,3447.3,0.7767]
[1735144768743,2.9001,3448.2,3447.4,0.42830404]
[1735144768856,0.55,3448.5,3447.4,0.42830404]
[1735144769471,2.90006,3448.3,3447.4,0.42830404]
[1735144769878,2.90006,3448.2,3447.4,0.42830404]
[1735144770078,2.90014,3448.1,3447.4,0.42830404]
[1735144770301,2.90014,3448.1,3447.3,0.7767]
[1735144771429,2.90024,3448.0,3447.3,0.7767]
[1735144771966,2.89938,3449.1,3447.5,0.7767]
[1735144772426,2.89959,3448.8,3447.7,0.7767]
[1735144772723,2.8994,3449.0,3447.9,3.677]
[1735144772868,2.89947,3448.9,3447.9,0.7767]
[1735144773068,2.89956,3448.8,3447.9,0.7767]
[1735144774692,2.89943,3449.0,3447.9,0.7767]
[1735144774909,0.8023,3449.7,3448.2,2.37650346]
[1735144775223,0.8023,3449.5,3447.9,0.7767]
[1735144775403,2.89956,3448.8,3447.9,0.7767]
[1735144775976,0.8023,3449.5,3447.9,3.67699]
[1735144776175,2.89935,3449.1,3448.0,0.7767]
[1735144776605,0.8023,3449.8,3448.2,0.7767]
[1735144776806,2.89922,3449.2,3448.3,0.7767]
[1735144777239,3.44886,3449.7,3448.3,0.7767]
[1735144777439,2.89889,3449.6,3448.5,2.89977]
[1735144777659,2.89889,3449.6,3448.6,0.7767]
[1735144778500,0.8023,3449.8,3448.6,0.7767]
[1735144778501,2.8988,3449.7,3448.6,0.7767]
[1735144778705,2.89909,3449.4,3448.6,0.7767]
[1735144778969,2.89954,3448.9,3448.6,0.7767]
[1735144779104,0.55,3447.6,3446.3,0.768]
[1735144779305,2.9009,3447.2,3446.0,1.19396202]
[1735144779534,0.7509,3446.9,3446.0,1.19396202]
[1735144779735,0.55,3446.8,3446.3,1.19396202]
[1735144780029,2.90157,3446.4,3446.3,1.19396202]
[1735144780468,3.45157,3446.4,3446.3,1.19396202]
[1735144781473,2.90184,3446.1,3445.4,0.768]
[1735144782567,3.55,3446.5,3445.4,0.768]
[1735144782774,2.90157,3446.4,3445.4,0.768]
[1735144782970,2.90184,3446.1,3445.4,0.768]
[1735144784339,3.55,3446.5,3445.4,0.768]
[1735144784536,2.90175,3446.2,3445.4,0.768]
[1735144784775,0.55,3446.5,3445.4,0.768]
[1735144785090,2.90182,3446.2,3445.4,0.768]
[1735144785873,2.90137,3446.7,3445.5,2.89022148]
[1735144786083,2.90124,3446.8,3445.7,0.8198]
[1735144786372,2.90148,3446.6,3445.7,0.8198]
[1735144786675,2.90162,3446.4,3445.7,0.8198]
[1735144790581,2.902,3445.9,3445.7,0.8198]
[1735144790877,2.90194,3446.0,3445.7,0.8198]
[1735144791587,2.90194,3446.0,3444.2,8.82]
[1735144791588,0.8327,3445.7,3442.9,1.27443156]
[1735144791884,4.28571,3444.7,3443.1,7.59549452]
[1735144792179,4.28571,3444.7,3443.7,0.8198]
[1735144794478,3.45301,3444.7,3443.7,0.8198]
[1735144796402,3.0,3445.4,3443.5,2.89022148]
[1735144796582,0.55,3445.0,3444.5,0.8045]
[1735144797080,3.45277,3445.0,3444.5,0.8045]
[1735144797480,0.55,3445.0,3444.5,0.8045]
[1735144798814,2.90252,3445.3,3444.5,0.8045]
[1735144798997,2.90243,3445.4,3444.5,0.8045]
[1735144799193,2.90225,3445.6,3444.5,0.8045]
[1735144799378,2.90225,3445.6,3444.5,3.70763]
[1735144799575,2.90301,3444.7,3444.6,8.3e-06]
[1735144799817,3.66561,3444.7,3444.6,8.3e-06]
[1735144800288,2.90301,3444.7,3444.6,8.3e-06]
[1735144801212,3.45301,3444.7,3444.6,8.3e-06]
[1735144801379,4.21561,3444.7,3444.6,8.3e-06]
[1735144801978,3.45301,3444.7,3444.6,8.3e-06]
[1735144803013,2.90286,3444.9,3444.6,8.3e-06]
[1735144803217,0.55,3445.0,3444.6,8.3e-06]
[1735144803614,2.90251,3445.3,3444.7,0.8045]
[1735144805015,2.90233,3445.6,3444.7,0.8045]
[1735144805216,2.37796389,3445.7,3444.7,1.17527683]
[1735144805418,5.28012389,3445.7,3444.7,0.8045]
[1735144805935,2.37796389,3446.1,3444.8,0.02902763]
[1735144806124,0.7824,3446.5,3444.8,0.832]
[1735144806357,2.90168,3446.3,3444.8,0.832]
[1735144806626,2.90168,3446.3,3445.2,0.832]
[1735144807505,2.89083994,3446.7,3445.2,0.832]
[1735144807713,2.89083994,3446.3,3445.2,0.832]
[1735144808335,2.90174,3446.2,3445.2,0.832]
[1735144808635,2.90188,3446.1,3445.2,0.832]
[1735144808830,0.55,3446.2,3445.2,0.832]
[1735144809250,3.55,3446.4,3445.3,3.275954]
[1735144809396,3.4516,3446.4,3445.3,3.275954]
[1735144809600,2.90169,3446.3,3445.3,0.373464]
[1735144810153,0.55,3446.1,3445.3,0.373464]
[1735144810459,3.45183,3446.1,3445.2,0.832]
[1735144811367,0.55,3446.6,3445.4,0.8144]
[1735144811574,2.90141,3446.6,3445.4,3.7168]
[1735144812644,0.55,3446.5,3445.5,2.90232]
[1735144812848,0.55,3446.5,3445.7,0.8144]
[1735144813537,0.55,3446.6,3445.7,0.8144]
[1735144813851,2.90159,3446.4,3445.7,0.8144]
[1735144814449,2.90176,3446.2,3445.7,0.8144]
[1735144814763,2.90187,3446.1,3445.7,0.8144]
[1735144814924,0.55,3446.0,3445.7,0.8144]
[1735144815124,0.55,3446.6,3445.7,0.8144]
[1735144815358,3.45143,3446.6,3445.7,0.8144]
[1735144815737,2.89083994,3446.7,3445.7,0.8144]
[1735144816461,5.79216994,3446.7,3445.7,0.8144]
[1735144817165,3.45142,3446.6,3445.7,0.8144]
[1735144817335,2.90152,3446.5,3445.7,0.8144]
[1735144817979,0.55,3446.6,3445.7,0.8144]
[1735144818480,0.55,3446.9,3445.7,0.8144]
[1735144818688,2.90151,3446.5,3445.7,0.8144]
[1735144819448,2.902,3445.9,3445.0,0.8144]
[1735144819645,0.55,3445.8,3445.0,0.8144]
[1735144820077,0.55,3445.7,3445.0,0.8144]
[1735144820277,2.90234,3445.5,3445.0,0.8144]
[1735144824196,0.55,3444.9,3444.6,0.8224083]
[1735144825978,0.55,3445.2,3444.6,0.8224083]
[1735144826194,2.90271,3445.1,3444.6,8.3e-06]
[1735144826490,0.55,3445.0,3444.6,8.3e-06]
[1735144827284,0.55,3445.3,3444.6,8.3e-06]
[1735144827519,2.90277,3445.0,3444.6,8.3e-06]
[1735144828135,0.55,3445.3,3444.6,8.3e-06]
[1735144828336,3.45255,3445.3,3444.6,8.3e-06]
[1735144828641,0.55,3444.7,3444.6,8.3e-06]
[1735144830734,3.45278,3445.0,3444.6,8.3e-06]
[1735144830913,0.55,3444.8,3444.6,8.3e-06]
[1735144832323,0.59604572,3444.7,3444.6,8.3e-06]
[1735144833067,0.04604572,3444.7,3444.6,8.3e-06]
[1735144833359,4.07598387,3445.2,3444.6,8.3e-06]
[1735144833520,0.03655964,3444.7,3444.6,8.3e-06]
[1735144833722,4.07598387,3445.2,3444.6,8.3e-06]
[1735144834363,0.03660298,3445.1,3444.6,8.3e-06]
[1735144835290,0.03660298,3445.1,3444.1,3.6258583]
[1735144835580,0.03660298,3445.1,3444.1,4.04727877]
[1735144836326,2.93927298,3445.1,3444.1,4.04727877]
[1735144836564,2.90267,3445.1,3444.1,4.04727877]
[1735144836874,0.03668965,3445.0,3444.1,4.04727877]
[1735144837620,0.03668965,3445.0,3444.2,2.90342]
[1735144837766,2.9026,3445.2,3444.3,0.33248405]
[1735144837955,0.55,3445.1,3444.3,0.33248405]
[1735144838162,0.58667727,3445.1,3444.4,0.8224]
[1735144839701,0.55,3444.7,3443.9,2.90365]
[1735144840002,0.55,3444.7,3444.0,0.8217]
[1735144840303,0.03678253,3444.6,3444.0,0.8217]
[1735144841299,0.03678253,3444.6,3444.0,1.37806964]
[1735144841802,0.03678253,3444.6,3444.3,2.90332]
[1735144842107,1.1925305,3445.2,3444.5,0.8217]
[1735144842605,0.0366649,3445.1,3444.8,0.8217]
[1735144844304,0.58401883,3445.5,3444.8,0.8217]
[1735144844503,0.0366649,3445.0,3444.8,0.8217]
[1735144844702,0.55,3445.6,3444.8,1.194169]
[1735144844904,2.90217,3445.7,3444.8,1.194169]
[1735144844905,0.0366649,3444.9,3444.8,0.8217]
[1735144845375,3.45235,3445.5,3444.8,0.8217]
[1735144845583,0.0366649,3444.9,3444.8,0.8217]
[1735144845779,3.45235,3445.5,3444.8,0.8217]
[1735144845982,0.0366649,3444.9,3444.8,0.8217]
[1735144846184,3.45235,3445.5,3444.8,0.8217]
[1735144846386,0.0366649,3444.9,3444.8,0.8217]
[1735144846585,3.45235,3445.5,3444.8,0.8217]
[1735144846785,0.0366649,3444.9,3444.8,0.8217]
[1735144846988,3.45235,3445.5,3444.8,0.8217]
[1735144847179,0.0366649,3444.9,3444.8,0.8217]
[1735144847383,3.45235,3445.5,3444.8,0.8217]
[1735144847585,0.0366649,3444.9,3444.8,0.8217]
[1735144847806,3.45235,3445.5,3444.8,0.8217]
[1735144848114,0.55,3445.6,3444.8,0.8217]
[1735144848410,0.0366649,3445.4,3444.8,0.8217]
[1735144848610,0.55,3445.6,3444.8,0.8217]
[1735144848798,0.0366649,3445.3,3444.8,0.8217]
[1735144849107,0.55,3445.6,3444.6,2.90307]
[1735144849108,0.0366649,3445.2,3444.6,2.90307]
[1735144849472,3.45225,3445.6,3444.7,0.8217]
[1735144849678,0.0366649,3445.5,3444.7,0.8217]
[1735144850270,0.0366649,3445.5,3444.5,0.59012295]
[1735144850476,0.55,3445.1,3443.9,1.25]
[1735144851111,0.55,3445.1,3444.1,2.90344]
[1735144851275,0.55,3445.1,3444.2,3.400934]
[1735144851503,2.90245,3445.4,3444.2,3.400934]
[1735144851504,0.03712297,3445.0,3444.2,3.400934]
[1735144851710,2.90252,3445.3,3444.2,3.400934]
[1735144851711,0.55,3445.2,3444.2,3.400934]
[1735144852044,0.03722202,3445.1,3444.3,0.8217]
[1735144852418,1.1925305,3445.4,3444.3,0.8217]
[1735144852624,0.03722202,3445.0,3444.3,1.30284457]
[1735144852825,1.1925305,3445.4,3444.5,2.90309]
[1735144853026,0.03699922,3444.9,3444.5,2.90309]
[1735144853427,0.03699922,3444.8,3444.5,2.90309]
[1735144853813,0.55,3445.5,3444.6,2.90306]
[1735144854149,0.03583398,3445.4,3444.6,2.90306]
[1735144854311,0.03583398,3445.4,3444.7,0.372476]
[1735144855333,0.03583398,3445.4,3444.4,0.8217]
[1735144855531,0.03583398,3445.4,3444.5,2.90317]
[1735144856656,0.03583398,3445.4,3444.7,2.90294]
[1735144857043,1.1925305,3445.6,3444.9,0.8285]
[1735144857239,0.03599491,3445.3,3444.9,0.8285]
[1735144857443,1.1925305,3445.6,3444.9,0.8285]
[1735144857760,0.55,3445.7,3444.9,0.8285]
[1735144857914,0.03599491,3445.5,3444.9,0.8285]
[1735144858115,0.55,3445.7,3444.9,0.8285]
[1735144858329,0.03479508,3445.4,3444.9,0.8285]
[1735144858615,1.1925305,3445.8,3445.0,0.37314]
[1735144858930,1.1925305,3445.8,3445.2,2.90258]
[1735144859134,0.03491886,3445.7,3445.2,2.90258]
[1735144859655,0.03491886,3445.7,3444.9,0.8285]
[1735144859959,0.03491886,3445.7,3445.4,0.8285]
[1735144860329,0.7649,3445.7,3444.8,3.0]
[1735144860535,0.03527164,3445.6,3444.9,0.673151]
[1735144860860,2.93759164,3445.6,3444.7,0.8285]
[1735144861556,0.03527164,3445.6,3445.0,2.90267]
[1735144861759,0.03527164,3445.6,3445.1,0.8285]
[1735144861925,2.90192,3446.0,3445.1,0.8285]
[1735144862262,1.1925305,3445.7,3445.1,0.8285]
[1735144862861,0.03545107,3445.6,3445.1,0.8285]
[1735144863750,2.90206,3445.9,3445.1,0.8285]
[1735144863965,0.03545107,3445.5,3445.1,0.8285]
[1735144864167,4.8592805,3446.1,3445.1,0.8285]
[1735144864463,1.1925305,3446.0,3445.1,0.8285]
[1735144864636,1.22798157,3446.0,3445.1,0.8285]
[1735144864838,1.22798157,3446.0,3445.1,1.25856906]
[1735144865560,1.22798157,3446.0,3445.1,3.73114]
[1735144865722,0.03545107,3446.0,3445.1,3.73114]
[1735144867373,0.03545107,3446.0,3444.8,0.56949057]
[1735144867374,2.90218,3445.7,3444.8,1.39799057]
[1735144867545,0.55,3445.9,3444.8,1.39799057]
[1735144867747,0.55,3446.0,3444.8,0.8285]
[1735144868047,3.66708,3445.7,3444.8,0.8285]
[1735144868442,0.03545107,3445.6,3444.8,0.8285]
[1735144869374,2.93771107,3445.6,3444.6,0.58391742]
[1735144870164,2.93771107,3445.6,3444.6,3.48698742]
[1735144870466,2.90247,3445.4,3444.5,0.8287]
[1735144871168,0.03545107,3445.3,3444.5,0.8287]
[1735144871738,0.03545107,3445.3,3444.6,0.57862863]
[1735144872143,0.03545107,3445.3,3444.6,1.05779795]
[1735144872489,0.03545107,3445.3,3444.6,3.48170863]
[1735144872698,1.1925305,3445.6,3444.6,3.48170863]
[1735144872835,0.03520974,3445.5,3444.8,2.90287]
[1735144873540,2.902,3445.9,3444.8,2.90287]
[1735144873741,0.03520974,3445.4,3444.6,0.57862863]
[1735144873939,2.902,3445.9,3444.9,2.90283]
[1735144874368,0.03520974,3445.8,3444.9,2.90283]
[1735144876245,0.03520974,3445.8,3444.7,0.43105786]
[1735144876446,0.03520974,3445.8,3444.9,2.90279]
[1735144876931,0.03520974,3445.8,3444.7,0.43105786]
[1735144877116,0.7742,3445.7,3444.8,2.9029]
[1735144877710,0.03520974,3445.6,3444.8,2.9029]
[1735144879016,0.03520974,3445.6,3444.7,0.47415265]
[1735144879916,0.03520974,3445.6,3444.7,3.37715265]
[1735144880992,0.03520974,3445.6,3444.8,2.9029]
[1735144881195,0.03520974,3445.6,3444.8,3.38133813]
[1735144881916,0.03520974,3445.6,3445.0,2.90274]
[1735144882131,0.03520974,3445.6,3444.8,3.38135813]
[1735144885717,0.03520974,3445.6,3444.8,0.47843813]
[1735144886019,0.03520974,3445.6,3444.9,2.90282]
[1735144888389,0.03520974,3445.6,3444.9,3.29880868]
[1735144890649,0.03520974,3445.6,3444.9,0.39598868]
[1735144891027,0.03520974,3445.6,3445.2,2.90256]
[1735144891547,0.03520974,3445.6,3445.5,2.90233]
[1735144892256,1.1925305,3445.8,3445.5,2.90233]
[1735144892454,1.1925305,3445.8,3445.7,2.90216]
[1735144892751,1.1925305,3445.8,3445.7,6.66886]
[1735144893353,1.1925305,3445.8,3445.7,7.24274958]
[1735144893551,1.1925305,3445.8,3445.7,1.34058958]
[1735144893730,1.9571305,3446.3,3445.7,1.34058958]
[1735144894053,1.9571305,3446.3,3445.8,0.76098026]
[1735144894948,0.7646,3446.3,3445.8,0.76098026]
[1735144897482,3.66628,3446.3,3445.7,0.57388958]
[1735144899087,0.7646,3446.3,3445.5,0.366903]
[1735144899389,2.90234,3445.5,3445.1,1.21413247]
[1735144899562,2.90258,3445.2,3445.1,1.21413247]
[1735144900093,4.22438,3445.2,3445.1,1.21413247]
[1735144900586,0.7718,3445.2,3444.4,0.7672]
[1735144900746,0.7718,3445.2,3444.3,3.59234987]
[1735144900747,0.79850902,3445.2,3444.3,3.59234987]
[1735144900953,0.7718,3445.2,3444.4,0.54135486]
[1735144901154,0.02626948,3445.1,3444.4,0.54135486]
[1735144901917,0.7718,3445.2,3444.4,0.54135486]
[1735144902117,0.7718,3445.2,3444.5,0.34447749]
[1735144902275,0.02626948,3445.1,3444.5,0.34447749]
[1735144903406,0.02626948,3445.1,3444.5,2.9031]
[1735144903602,0.02626948,3445.1,3444.3,2.3782174]
[1735144903920,0.02626948,3445.0,3444.3,2.3782174]
[1735144904091,0.02626948,3445.0,3444.5,2.90317]
[1735144904419,1.1925305,3445.7,3444.7,0.7672]
[1735144904718,0.02615182,3445.6,3445.2,2.90255]
[1735144904919,1.1925305,3445.8,3445.4,0.7576]
[1735144905117,0.02615182,3445.7,3445.4,0.7576]
[1735144905319,0.02615182,3445.7,3445.5,2.90231]
[1735144905519,0.02615182,3445.7,3445.6,2.90225]
[1735144905721,0.02615182,3445.7,3445.6,3.558479]
[1735144906303,1.1925305,3446.5,3445.6,7.316079]
[1735144906622,0.02607285,3446.4,3446.0,2.90191]
[1735144906924,0.02607285,3446.4,3446.3,5.2798774]
[1735144907098,1.1925305,3446.5,3446.3,6.17381614]
[1735144907304,1.1925305,3446.5,3446.4,2.90157]
[1735144907705,1.1925305,3446.5,3446.3,1.47761045]
[1735144907968,1.1925305,3446.5,3446.3,0.58367171]
[1735144908208,1.1925305,3446.5,3446.1,0.7576]
[1735144908410,0.7957,3446.9,3446.1,0.7576]
[1735144908591,0.02664222,3446.4,3446.1,0.7576]
[1735144908787,0.7957,3446.9,3446.1,0.7576]
[1735144909023,0.7957,3446.9,3446.1,1.66137874]
[1735144909240,0.0266979,3446.8,3446.1,1.66137874]
[1735144909401,0.0266979,3446.8,3446.1,0.90377874]
[1735144909594,0.0266979,3446.8,3446.2,0.58059057]
[1735144912109,2.9279479,3446.8,3446.2,0.58059057]
[1735144912433,0.0266979,3446.8,3446.2,0.58059057]
[1735144914207,0.0266979,3446.8,3446.2,3.48232057]
[1735144914409,0.0266979,3446.8,3446.3,0.34823206]
[1735144914642,4.9210705,3447.3,3446.3,0.34823206]
[1735144914797,0.02638667,3446.7,3446.3,0.34823206]
[1735144915002,4.9210705,3447.3,3446.3,0.34823206]
[1735144915331,2.0202305,3447.3,3446.4,0.8167]
[1735144915533,0.02638667,3447.2,3446.5,3.07600226]
[1735144917841,3.7283,3447.6,3446.5,3.07600226]
[1735144918314,0.02638667,3447.5,3446.5,3.07600226]
[1735144919200,0.02638667,3447.5,3446.6,2.90136]
[1735144919399,0.02638667,3447.5,3446.7,0.39216202]
[1735144919809,0.02638667,3447.5,3446.8,0.8167]
[1735144920207,2.90052,3447.7,3446.8,0.8167]
[1735144920402,0.02719117,3447.4,3446.8,0.8167]
[1735144920737,0.8277,3447.7,3446.5,0.99125226]
[1735144920938,0.55,3447.6,3446.2,1.39729057]
[1735144921115,0.8277,3447.5,3446.2,1.39729057]
[1735144921317,2.90073,3447.4,3446.2,1.39729057]
[1735144921539,2.90088,3447.3,3446.2,1.39729057]
[1735144921717,3.72835,3447.5,3446.2,1.39729057]
[1735144922045,0.02719117,3447.4,3446.2,1.39729057]
[1735144922205,0.02719117,3447.4,3446.6,2.90132]
[1735144922404,2.90049,3447.7,3446.6,2.90132]
[1735144922702,2.90049,3447.7,3446.7,2.90129]
[1735144922909,0.8277,3447.8,3446.5,3.1949174]
[1735144923110,0.8277,3447.8,3446.8,2.90123]
[1735144923342,0.02719117,3447.7,3446.9,0.290123]
[1735144924045,0.02719117,3447.7,3447.0,0.8167]
[1735144925208,0.02719117,3447.7,3446.9,0.290123]
[1735144925405,2.92768117,3447.7,3446.7,0.8167]
[1735144925646,2.90049,3447.7,3446.7,0.8167]
[1735144925833,0.02719117,3447.6,3446.7,0.8167]
[1735144926473,0.02719117,3447.6,3446.3,0.67063077]
[1735144926768,2.90097,3447.2,3446.3,0.67063077]
[1735144926915,2.90097,3447.2,3446.4,0.79697413]
[1735144927267,0.8277,3447.4,3446.4,0.79697413]
[1735144927437,2.90107,3447.0,3446.2,1.39729057]
[1735144927814,0.02719117,3446.9,3446.2,1.39729057]
[1735144928753,0.8277,3447.4,3446.2,4.29901057]
[1735144928967,0.02719117,3447.3,3446.3,0.43280226]
[1735144929311,0.02719117,3447.3,3446.3,2.9016]
[1735144929711,2.90109,3447.0,3446.2,1.39729057]
[1735144929970,0.8277,3447.4,3446.2,0.58059057]
[1735144930174,0.8277,3447.4,3445.0,2.67826495]
[1735144930175,0.55,3447.1,3445.2,1.82119871]
[1735144930374,0.55,3447.1,3445.2,1.21413247]
[1735144930375,0.8309,3446.3,3445.2,1.21413247]
[1735144930514,0.8309,3445.7,3445.2,1.51766559]